bitfinex/quotes_BTCUSD_20250505
["timestamp","ask_amount","ask_price","bid_price","bid_amount"]
[1746484076196,0.21242219,95094.0,95093.0,0.036]
[1746484076437,0.21242219,95094.0,95093.0,0.038]
[1746484080948,0.22891298,95094.0,95093.0,0.038]
[1746484081160,0.226809,95094.0,95093.0,0.038]
[1746484082407,0.226809,95094.0,95093.0,0.0215]
[1746484086783,0.21031821,95094.0,95093.0,0.0215]
[1746484088067,0.21031821,95094.0,95093.0,0.005]
[1746484088283,0.21242219,95094.0,95093.0,0.005]
[1746484089356,0.00516648,95093.0,95091.0,0.001]
[1746484089572,0.21032263,95092.0,95091.0,0.001]
[1746484089950,0.22681389,95092.0,95091.0,0.001]
[1746484090529,0.22681389,95092.0,95091.0,0.006]
[1746484090726,0.22681389,95092.0,95091.0,0.004]
[1746484091072,0.22681389,95092.0,95091.0,0.001]
[1746484091273,0.22681389,95092.0,95091.0,0.004]
[1746484091504,0.22681389,95092.0,95091.0,0.01365953]
[1746484092137,0.22681389,95092.0,95091.0,0.006]
[1746484092726,0.72681389,95092.0,95091.0,0.006]
[1746484096600,0.71032263,95092.0,95091.0,0.006]
[1746484099791,0.72681452,95092.0,95091.0,0.006]
[1746484103996,0.72297452,95092.0,95091.0,0.006]
[1746484105423,0.72297452,95092.0,95091.0,0.00083352]
[1746484108895,1.09540363,95092.0,95091.0,0.00083352]
[1746484109051,1.13994532,95092.0,95091.0,0.00083352]
[1746484109476,1.12494532,95092.0,95091.0,0.00083352]
[1746484109684,1.10854532,95092.0,95091.0,0.00083352]
[1746484109912,0.22088016,95075.0,95073.0,0.0156]
[1746484110049,0.22088016,95075.0,95073.0,0.0315]
[1746484110050,0.21036245,95074.0,95073.0,0.0315]
[1746484111600,0.22685667,95074.0,95073.0,0.0315]
[1746484112012,0.22685667,95074.0,95073.0,0.0355]
[1746484112185,0.22685667,95074.0,95073.0,0.0395]
[1746484112394,0.22685667,95074.0,95073.0,0.0355]
[1746484112589,0.23751802,95074.0,95073.0,0.0395]
[1746484116659,0.2210238,95074.0,95073.0,0.0395]
[1746484118085,0.0105179,95076.0,95074.0,0.0312]
[1746484118304,0.21036024,95075.0,95074.0,0.0312]
[1746484119307,0.21036024,95075.0,95074.0,0.0382]
[1746484119750,0.22685424,95075.0,95074.0,0.03898242]
[1746484119981,0.22685424,95075.0,95074.0,0.04298242]
[1746484120956,0.22685424,95075.0,95074.0,0.04698242]
[1746484124080,0.016494,95075.0,95074.0,0.25734487]
[1746484125527,0.21031108,95098.0,95074.0,0.25734487]
[1746484125528,0.01051502,95102.0,95097.0,0.01051557]
[1746484125750,0.01051502,95102.0,95100.0,0.0318]
[1746484125751,0.21030273,95101.0,95100.0,0.0318]
[1746484125949,0.22081786,95101.0,95100.0,0.03952039]
[1746484127277,0.22081786,95101.0,95100.0,0.00772039]
[1746484127593,0.21031599,95095.0,95094.0,0.0157]
[1746484128429,0.21032308,95092.0,95091.0,0.0152]
[1746484128676,0.21032308,95092.0,95091.0,0.0305]
[1746484128850,0.22681486,95092.0,95091.0,0.03824324]
[1746484130507,0.22681486,95092.0,95091.0,0.03924324]
[1746484130926,0.22681486,95092.0,95091.0,0.04024324]
[1746484131530,0.22681486,95092.0,95091.0,0.02494324]
[1746484131846,0.22681486,95092.0,95091.0,0.00974324]
[1746484132134,0.22681486,95092.0,95091.0,0.02574324]
[1746484133127,0.22681486,95092.0,95091.0,0.00974324]
[1746484133566,0.22681486,95092.0,95091.0,0.002]
[1746484133779,0.22681486,95092.0,95091.0,0.00974324]
[1746484134664,0.22681486,95092.0,95091.0,0.04244324]
[1746484136840,0.21032308,95092.0,95091.0,0.04244324]
[1746484138676,0.22083302,95095.0,95091.0,0.22006808]
[1746484138931,0.21030051,95102.0,95099.0,0.2103068]
[1746484139155,0.21028607,95109.0,95102.0,0.01051502]
[1746484139349,0.01051458,95106.0,95103.0,0.21790196]
[1746484139551,0.01051458,95106.0,95105.0,0.0318]
[1746484139754,0.2208081,95106.0,95105.0,0.03939858]
[1746484139980,0.23729809,95106.0,95105.0,0.03939858]
[1746484140194,0.23729809,95106.0,95105.0,0.03839858]
[1746484140407,0.01648999,95106.0,95105.0,0.03839858]
[1746484140625,0.02048999,95106.0,95105.0,0.03839858]
[1746484140844,0.02048999,95106.0,95105.0,0.0308]
[1746484141026,0.22878166,95106.0,95105.0,0.03839858]
[1746484141631,0.01848999,95106.0,95105.0,0.03839858]
[1746484142133,0.02048999,95106.0,95105.0,0.03839858]
[1746484145357,0.02048999,95106.0,95105.0,0.24869246]
[1746484146276,0.01848999,95106.0,95105.0,0.24869246]
[1746484146805,0.003,95106.0,95105.0,0.24869246]
[1746484149503,0.003,95106.0,95105.0,0.03839858]
[1746484149702,0.003,95106.0,95105.0,0.00759858]
[1746484150050,0.21030273,95101.0,95100.0,0.0313]
[1746484150400,0.21030273,95101.0,95100.0,0.03888386]
[1746484150603,0.21030104,95102.0,95101.0,0.0313]
[1746484150809,0.01051491,95103.0,95102.0,0.0313]
[1746484151005,0.01051491,95103.0,95102.0,0.03887878]
[1746484151221,0.22081321,95103.0,95102.0,0.03887878]
[1746484151653,0.22081321,95103.0,95102.0,0.00757878]
[1746484152011,0.21030936,95098.0,95097.0,0.0156]
[1746484152215,0.21030936,95098.0,95097.0,0.02319148]
[1746484152634,0.21030292,95101.0,95098.0,0.21030768]
[1746484153040,0.21030292,95101.0,95099.0,0.0075864]
[1746484153439,0.21030936,95098.0,95097.0,0.001]
[1746484155363,0.01051668,95087.0,95084.0,0.015]
[1746484155569,0.01051734,95081.0,95078.0,0.0321]
[1746484155786,0.21035066,95080.0,95078.0,0.0159]
[1746484155987,0.22086539,95081.0,95078.0,0.22625157]
[1746484156167,0.01051734,95081.0,95079.0,0.0162]
[1746484156368,0.01051734,95081.0,95079.0,0.22655008]
[1746484156571,0.22086395,95083.0,95079.0,0.21035008]
[1746484156751,0.01051734,95081.0,95078.0,0.21235334]
[1746484157361,0.0105169,95085.0,95081.0,0.01051734]
[1746484157767,0.01051668,95087.0,95083.0,0.21034241]
[1746484158292,0.01051668,95087.0,95084.0,0.21033949]
[1746484158843,0.22085111,95087.0,95084.0,0.21033949]
[1746484159829,0.22085111,95087.0,95084.0,0.21133949]
[1746484160031,0.22085111,95087.0,95085.0,0.21033811]
[1746484160831,0.01051657,95088.0,95085.0,0.21033811]
[1746484161358,0.02700939,95088.0,95085.0,0.21033811]
[1746484161528,0.02700939,95088.0,95085.0,0.21133811]
[1746484161729,0.01649282,95088.0,95087.0,0.21033369]
[1746484161954,0.01649282,95088.0,95087.0,0.22673369]
[1746484162359,0.01649282,95088.0,95087.0,0.24223369]
[1746484162594,0.0105148,95104.0,95087.0,0.24223369]
[1746484162595,0.01051469,95105.0,95102.0,0.21030018]
[1746484162797,0.01051425,95109.0,95102.0,0.2208152]
[1746484162798,0.22080088,95109.0,95102.0,0.2208152]
[1746484162954,0.01051414,95110.0,95106.0,0.22080429]
[1746484163159,0.22079802,95110.0,95106.0,0.22080429]
[1746484163382,0.22079802,95110.0,95106.0,0.21028971]
[1746484163383,0.23728839,95110.0,95106.0,0.21028971]
[1746484163609,0.01051425,95109.0,95107.0,0.21028913]
[1746484164017,0.01051425,95109.0,95106.0,0.21028971]
[1746484164177,0.2102864,95109.0,95106.0,0.21029157]
[1746484164377,0.2102864,95109.0,95105.0,0.21029253]
[1746484164378,0.01051436,95108.0,95105.0,0.21029253]
[1746484164603,0.2102864,95109.0,95106.0,0.21029143]
[1746484164604,0.01051425,95109.0,95106.0,0.21029143]
[1746484164798,0.01051425,95109.0,95107.0,0.00767035]
[1746484165297,0.01151425,95109.0,95107.0,0.21795912]
[1746484165475,0.22179962,95109.0,95107.0,0.00767035]
[1746484165831,0.01251425,95109.0,95107.0,0.00767035]
[1746484166481,0.01151425,95109.0,95107.0,0.00767035]
[1746484166687,0.002,95109.0,95108.0,0.21028725]
[1746484167020,0.002,95109.0,95108.0,0.21795506]
[1746484167220,0.002,95109.0,95108.0,0.00766781]
[1746484167447,0.002,95109.0,95108.0,0.21795506]
[1746484167667,0.001,95109.0,95108.0,0.00766781]
[1746484168068,0.002,95109.0,95108.0,0.21795506]
[1746484168217,0.001,95109.0,95108.0,0.21795506]
[1746484168617,0.002,95109.0,95108.0,0.21795506]
[1746484170210,0.01848967,95109.0,95108.0,0.21795506]
[1746484172548,0.01848967,95109.0,95108.0,0.24875506]
[1746484173332,0.01648967,95109.0,95108.0,0.24875506]
[1746484173763,0.01648967,95109.0,95108.0,0.25175506]
[1746484176731,0.22077621,95119.0,95116.0,0.21026838]
[1746484177121,0.22077621,95119.0,95117.0,0.00749756]
[1746484177465,0.01051314,95119.0,95117.0,0.21026731]
[1746484177805,0.01051314,95119.0,95118.0,0.00749502]
[1746484179062,0.001,95119.0,95118.0,0.00749502]
[1746484179475,0.21026094,95120.0,95118.0,0.00749502]
[1746484179960,0.01748833,95119.0,95118.0,0.00749502]
[1746484180391,0.01648833,95119.0,95118.0,0.00749502]
[1746484180807,0.01648833,95119.0,95118.0,0.23406016]
[1746484182152,0.01748833,95119.0,95118.0,0.24946016]
[1746484182554,0.01648833,95119.0,95118.0,0.24946016]
[1746484183678,0.01648833,95119.0,95118.0,0.25346016]
[1746484184633,0.01648833,95119.0,95118.0,0.24946016]
[1746484185036,0.01648833,95119.0,95118.0,0.25546016]
[1746484190465,0.01648833,95119.0,95118.0,0.01349502]
[1746484190702,0.25925126,95119.0,95118.0,0.01349502]
[1746484191105,0.25925126,95119.0,95118.0,0.006]
[1746484191308,0.01051358,95115.0,95110.0,0.21028179]
[1746484191509,0.01051347,95116.0,95110.0,0.01051414]
[1746484191718,0.01051325,95118.0,95112.0,0.21027639]
[1746484191920,0.01648833,95119.0,95111.0,0.00741306]
[1746484191921,0.01648833,95119.0,95115.0,0.01051358]
[1746484192112,0.01848833,95119.0,95115.0,0.01051358]
[1746484192274,0.02900147,95119.0,95117.0,0.21026586]
[1746484192593,0.01848833,95119.0,95118.0,0.21666043]
[1746484192735,0.01648833,95119.0,95118.0,0.21666043]
[1746484193138,0.01848833,95119.0,95118.0,0.21666043]
[1746484194166,0.01748833,95119.0,95118.0,0.00739529]
[1746484194385,0.02700147,95119.0,95116.0,0.21026924]
[1746484194585,0.02900147,95119.0,95117.0,0.00739783]
[1746484194781,0.23926624,95119.0,95116.0,0.21026924]
[1746484194986,0.24026624,95119.0,95117.0,0.00739783]
[1746484195162,0.24026624,95119.0,95116.0,0.21026924]
[1746484195163,0.21026537,95118.0,95116.0,0.21026924]
[1746484195362,0.23826624,95119.0,95117.0,0.00739783]
[1746484195579,0.24026624,95119.0,95116.0,0.21026924]
[1746484195776,0.24026624,95119.0,95117.0,0.00739783]
[1746484195984,0.21026516,95118.0,95116.0,0.21026924]
[1746484196232,0.21226516,95118.0,95117.0,0.00739783]
[1746484196431,0.21226516,95118.0,95116.0,0.21026924]
[1746484196705,0.002,95118.0,95117.0,0.00739783]
[1746484197093,0.002,95118.0,95117.0,0.21026735]
[1746484197409,0.21226514,95118.0,95117.0,0.00739783]
[1746484197593,0.22077839,95118.0,95115.0,0.21027056]
[1746484197800,0.22077839,95118.0,95116.0,0.00740037]
[1746484198005,0.22277839,95118.0,95116.0,0.00740037]
[1746484198542,0.22077839,95118.0,95116.0,0.00740037]
[1746484198695,0.22277839,95118.0,95116.0,0.00740037]
[1746484198891,0.002,95118.0,95117.0,0.21026735]
[1746484199282,0.22077622,95119.0,95117.0,0.21766518]
[1746484199443,0.002,95118.0,95117.0,0.21766518]
[1746484200682,0.002,95118.0,95117.0,0.24966518]
[1746484200822,0.001,95119.0,95118.0,0.21026514]
[1746484201000,0.01051193,95130.0,95128.0,0.20824293]
[1746484201203,0.21024052,95131.0,95128.0,0.20824293]
[1746484201204,0.22075234,95131.0,95128.0,0.20824293]
[1746484201620,0.01648697,95130.0,95129.0,0.21024083]
[1746484202026,0.01648697,95130.0,95129.0,0.22794305]
[1746484202230,0.01648697,95130.0,95129.0,0.24154083]
[1746484202430,0.001,95149.0,95148.0,0.21019884]
[1746484202657,0.001,95149.0,95148.0,0.2426005]
[1746484202898,0.001,95149.0,95148.0,0.58049884]
[1746484203113,0.001,95149.0,95148.0,6.06413969]
[1746484203324,0.001,95149.0,95148.0,6.08369255]
[1746484203520,0.001,95149.0,95148.0,1.80599255]
[1746484203724,0.001,95149.0,95148.0,1.03369255]
[1746484204345,0.001,95149.0,95148.0,6.09069255]
[1746484204549,0.001,95149.0,95148.0,6.09169255]
[1746484205177,0.001,95149.0,95148.0,6.09869255]
[1746484206789,0.001,95149.0,95148.0,6.07913969]
[1746484207831,0.001,95149.0,95148.0,6.09857794]
[1746484208010,0.001,95149.0,95148.0,4.59337794]
[1746484210142,0.29499324,95199.0,95148.0,4.59337794]
[1746484210143,0.08490541,95199.0,95168.0,0.22605467]
[1746484210335,0.08490541,95199.0,95168.0,0.24135467]
[1746484210778,0.08490541,95199.0,95168.0,6.06499552]
[1746484211186,0.01647487,95190.0,95168.0,1.01499552]
[1746484211413,0.01647487,95190.0,95168.0,5.92439552]
[1746484211852,0.01647487,95190.0,95168.0,5.92139552]
[1746484212303,0.01647487,95190.0,95168.0,5.95755551]
[1746484213598,0.01647487,95190.0,95168.0,5.93039552]
[1746484213831,0.01647487,95190.0,95168.0,3.08979552]
[1746484215701,0.01647487,95190.0,95168.0,3.09431638]
[1746484216828,0.01050365,95205.0,95168.0,3.09431638]
[1746484217293,0.23140445,95207.0,95168.0,3.09431638]
[1746484217499,0.01050365,95205.0,95168.0,3.09431638]
[1746484217706,0.23140445,95207.0,95168.0,3.09431638]
[1746484217914,0.01050353,95206.0,95168.0,3.09431638]
[1746484218974,0.21007311,95205.0,95168.0,3.09431638]
[1746484219351,0.2205745,95206.0,95168.0,3.09431638]
[1746484219672,0.02133515,95207.0,95168.0,3.09431638]
[1746484219673,0.01083173,95207.0,95168.0,3.09431638]
[1746484219905,0.23140374,95207.0,95168.0,3.09431638]
[1746484220118,0.02133515,95207.0,95168.0,3.09431638]
[1746484220333,0.23140383,95207.0,95168.0,3.09431638]
[1746484220622,0.02133515,95207.0,95168.0,3.09431638]
[1746484221317,0.23140418,95207.0,95168.0,3.1136854]
[1746484222065,0.02133515,95207.0,95168.0,3.1136854]
[1746484222342,0.01083173,95207.0,95168.0,3.1136854]
[1746484222608,0.02133515,95207.0,95168.0,3.1136854]
[1746484223039,0.01083173,95207.0,95168.0,3.1136854]
[1746484223292,0.001,95209.0,95187.0,0.24221272]
[1746484223726,0.001,95209.0,95187.0,0.24728053]
[1746484223953,0.001,95209.0,95187.0,5.29728053]
[1746484224615,0.001,95209.0,95187.0,0.38908053]
[1746484224616,0.01647256,95208.0,95187.0,0.38908053]
[1746484224879,0.21006881,95207.0,95187.0,0.21918053]
[1746484225072,0.01647256,95208.0,95187.0,0.21918053]
[1746484225343,0.01647256,95208.0,95187.0,0.2271926]
[1746484226199,0.01647256,95208.0,95187.0,0.21918053]
[1746484226416,0.0163,95196.0,95187.0,0.01006781]
[1746484226637,0.0163,95196.0,95187.0,0.22018053]
[1746484227791,0.02970989,95188.0,95187.0,0.01006781]
[1746484228035,0.04500989,95188.0,95187.0,0.01006781]
[1746484228256,0.04500989,95188.0,95187.0,0.005]
[1746484228746,0.02145217,95188.0,95187.0,0.01006492]
[1746484229413,0.02145217,95188.0,95187.0,0.00906492]
[1746484229606,0.02145217,95188.0,95187.0,0.00506492]
[1746484229890,0.02145217,95188.0,95187.0,0.00606492]
[1746484230453,0.02145217,95188.0,95187.0,0.00906492]
[1746484231141,0.00501275,95188.0,95187.0,0.00906492]
[1746484231346,0.01050508,95192.0,95187.0,0.00906492]
[1746484231563,0.01050497,95193.0,95187.0,0.00906492]
[1746484231996,0.01050486,95194.0,95188.0,0.21011051]
[1746484232629,0.01050486,95194.0,95188.0,0.21519123]
[1746484232949,0.01050519,95191.0,95188.0,0.21519123]
[1746484233589,0.01050508,95192.0,95188.0,0.21619123]
[1746484235263,0.22540025,95193.0,95188.0,0.21619123]
[1746484235564,0.01050508,95192.0,95188.0,0.21619123]
[1746484236035,0.23590522,95193.0,95188.0,0.21619123]
[1746484236372,0.22060941,95191.0,95188.0,0.21619123]
[1746484236595,0.24250831,95189.0,95188.0,0.00608072]
[1746484237022,0.24250831,95189.0,95188.0,0.001]
[1746484237964,0.74250831,95189.0,95188.0,0.001]
[1746484240748,1.08250831,95189.0,95188.0,0.001]
[1746484242338,0.0105074,95171.0,95168.0,0.21015392]
[1746484242564,0.0105074,95171.0,95169.0,0.21015242]
[1746484242795,0.0105074,95171.0,95169.0,0.21538768]
[1746484244342,0.0105074,95171.0,95169.0,0.21838768]
[1746484244771,0.02094794,95171.0,95169.0,0.21838768]
[1746484244955,0.01044054,95171.0,95169.0,0.21838768]
[1746484245338,0.22065468,95172.0,95169.0,0.22038768]
[1746484245551,0.22065468,95172.0,95169.0,0.21738768]
[1746484245711,0.22065468,95172.0,95169.0,0.21538768]
[1746484245912,0.22065468,95172.0,95169.0,0.21638768]
[1746484246357,0.22065468,95172.0,95169.0,0.21738768]
[1746484247233,0.01050718,95173.0,95170.0,0.21014875]
[1746484247642,0.22065105,95173.0,95171.0,0.215465]
[1746484247859,0.22065105,95173.0,95171.0,0.00531737]
[1746484248448,0.23125159,95173.0,95171.0,0.00531737]
[1746484249053,0.02110772,95173.0,95171.0,0.21646486]
[1746484249433,0.23125146,95173.0,95171.0,0.00631737]
[1746484249815,0.02110772,95173.0,95171.0,0.21646446]
[1746484250012,0.0269844,95174.0,95172.0,0.21014584]
[1746484250218,0.0269844,95174.0,95173.0,0.0053123]
[1746484250219,0.01647733,95174.0,95173.0,0.0053123]
[1746484250431,0.22661875,95174.0,95173.0,0.0053123]
[1746484250922,0.23712582,95174.0,95171.0,0.21214782]
[1746484251123,0.23712582,95174.0,95173.0,0.0053123]
[1746484251326,0.23712582,95174.0,95172.0,0.00531483]
[1746484251548,0.23712582,95174.0,95171.0,0.21114782]
[1746484251757,0.0279844,95174.0,95173.0,0.0053123]
[1746484251959,0.0279844,95174.0,95173.0,0.001]
[1746484252139,0.01747733,95174.0,95173.0,0.0063123]
[1746484252344,0.01747733,95174.0,95173.0,0.0053123]
[1746484252557,0.01647733,95174.0,95173.0,0.0053123]
[1746484252753,0.02789649,95174.0,95173.0,0.0053123]
[1746484253192,0.01647733,95174.0,95173.0,0.0063123]
[1746484253395,0.01647733,95174.0,95173.0,0.21645593]
[1746484253599,0.01647733,95174.0,95173.0,0.23225593]
[1746484254269,0.01647733,95174.0,95173.0,0.21645593]
[1746484254469,0.01747733,95174.0,95173.0,0.21645593]
[1746484254871,0.01747733,95174.0,95173.0,0.21545593]
[1746484255063,0.01647733,95174.0,95173.0,0.21645593]
[1746484255274,0.01647733,95174.0,95173.0,0.21745593]
[1746484255796,0.01647733,95174.0,95173.0,0.21645593]
[1746484256196,0.01647733,95174.0,95173.0,0.21845593]
[1746484256773,0.23141655,95186.0,95183.0,0.21011971]
[1746484257156,0.23141655,95186.0,95184.0,0.00528442]
[1746484257689,0.00145672,95189.0,95187.0,0.21011225]
[1746484257923,0.00145672,95189.0,95188.0,0.20811051]
[1746484258118,0.00145672,95189.0,95188.0,0.21335343]
[1746484258481,0.00145672,95189.0,95188.0,0.21135343]
[1746484259479,0.00145672,95189.0,95188.0,0.21235343]
[1746484259938,0.00145672,95189.0,95188.0,0.21435343]
[1746484260844,0.00145672,95189.0,95188.0,0.21535343]
[1746484260979,0.20145672,95189.0,95188.0,0.21235343]
[1746484261214,0.20145672,95189.0,95188.0,0.21135343]
[1746484261421,0.20145672,95189.0,95188.0,0.21235343]
[1746484261633,0.20145672,95189.0,95188.0,0.20926072]
[1746484263898,0.20145672,95189.0,95188.0,0.24086072]
[1746484264307,0.00145672,95189.0,95188.0,0.23986072]
[1746484264719,0.00145672,95189.0,95188.0,0.24086072]
[1746484264945,0.00145672,95189.0,95188.0,0.24386072]
[1746484265182,0.00145672,95189.0,95188.0,0.24186072]
[1746484265588,0.00145672,95189.0,95188.0,0.24486072]
[1746484267660,0.00145672,95189.0,95188.0,0.21326072]
[1746484267818,0.00145672,95189.0,95188.0,0.20726072]
[1746484268013,0.00145672,95189.0,95188.0,0.21126072]
[1746484271090,0.00145672,95189.0,95188.0,0.00924292]
[1746484271339,0.21156503,95189.0,95188.0,0.00924292]
[1746484271551,0.21156503,95189.0,95188.0,0.004]
[1746484271761,0.21156503,95189.0,95188.0,0.00915272]
[1746484271964,0.21156503,95189.0,95188.0,0.004]
[1746484272168,0.41156503,95189.0,95188.0,0.00915272]
[1746484272399,0.20145672,95189.0,95188.0,0.002]
[1746484272665,0.20145672,95189.0,95188.0,0.003]
[1746484272878,0.20145672,95189.0,95188.0,0.00615272]
[1746484273875,0.41156503,95189.0,95188.0,0.00615272]
[1746484274070,0.42716503,95189.0,95188.0,0.00615272]
[1746484274244,0.42716503,95189.0,95188.0,0.002]
[1746484274628,0.42716503,95189.0,95188.0,0.001]
[1746484274825,0.2206204,95187.0,95182.0,0.21012262]
[1746484275029,0.2206204,95187.0,95183.0,0.21011945]
[1746484275238,0.20145672,95189.0,95188.0,0.21011051]
[1746484275441,0.20145672,95189.0,95188.0,0.21526323]
[1746484275662,0.21793174,95189.0,95188.0,0.21526323]
[1746484276097,0.01793174,95189.0,95188.0,0.21526323]
[1746484276301,0.01793174,95189.0,95188.0,0.23056323]
[1746484276678,0.00145672,95189.0,95188.0,0.23056323]
[1746484277601,0.00145672,95189.0,95188.0,0.23156323]
[1746484277831,0.00145672,95189.0,95188.0,0.21626323]
[1746484278161,0.00145672,95189.0,95188.0,0.21726323]
[1746484279047,0.20145672,95189.0,95188.0,0.21626323]
[1746484279411,0.20145672,95189.0,95188.0,0.21726323]
[1746484279621,0.41156503,95189.0,95188.0,0.00715272]
[1746484279780,0.41156503,95189.0,95188.0,0.00615272]
[1746484279984,0.41156503,95189.0,95188.0,0.00715272]
[1746484280224,0.41156503,95189.0,95188.0,0.002]
[1746484280685,0.41156503,95189.0,95188.0,0.00717623]
[1746484281262,0.4280403,95189.0,95188.0,0.00717623]
[1746484281461,0.4280403,95189.0,95188.0,0.002]
[1746484281716,0.4431403,95189.0,95188.0,0.002]
[1746484282115,0.4280403,95189.0,95188.0,0.002]
[1746484283316,0.4280403,95189.0,95188.0,0.001]
[1746484283695,0.21793199,95189.0,95188.0,0.00717623]
[1746484283901,0.21793199,95189.0,95188.0,0.21728674]
[1746484284108,0.01793199,95189.0,95188.0,0.23368674]
[1746484284321,0.01793199,95189.0,95188.0,0.23268674]
[1746484284524,0.01793199,95189.0,95188.0,0.23168674]
[1746484285291,0.01793199,95189.0,95188.0,0.23268674]
[1746484285523,0.01793199,95189.0,95188.0,0.24918674]
[1746484286466,0.01793199,95189.0,95188.0,0.24818674]
[1746484286667,0.00145672,95189.0,95188.0,0.25018674]
[1746484286869,0.00145672,95189.0,95188.0,0.25218674]
[1746484287553,0.00145672,95189.0,95188.0,0.25018674]
[1746484287781,0.00145672,95189.0,95188.0,0.25318674]
[1746484287996,0.00145672,95189.0,95188.0,0.25018674]
[1746484288240,0.00145672,95189.0,95188.0,0.24818674]
[1746484288444,0.00145672,95189.0,95188.0,0.25118674]
[1746484288856,0.00041816,95189.0,95188.0,0.25118674]
[1746484289435,0.00041816,95189.0,95188.0,0.25418674]
[1746484289635,0.00041816,95189.0,95188.0,0.25118674]
[1746484289993,0.00041816,95189.0,95188.0,0.25418674]
[1746484290313,0.00041816,95189.0,95188.0,0.25118674]
[1746484290730,0.00041816,95189.0,95188.0,0.25418674]
[1746484294485,0.00041816,95189.0,95188.0,0.48818674]
[1746484294693,0.00041816,95189.0,95188.0,0.25418674]
[1746484310781,0.21052647,95189.0,95188.0,0.01117623]
[1746484310981,0.00041816,95189.0,95188.0,0.22128674]
[1746484311188,0.00041816,95189.0,95188.0,0.006]
[1746484311360,0.00041816,95189.0,95188.0,0.01001514]
[1746484311361,0.22632647,95189.0,95188.0,0.01001514]
[1746484311539,0.00041816,95189.0,95188.0,0.01001514]
[1746484311747,0.00041816,95189.0,95188.0,0.22012565]
[1746484312163,0.20041816,95189.0,95188.0,0.22112943]
[1746484312789,0.20041816,95189.0,95188.0,0.21512943]
[1746484312971,0.20041816,95189.0,95188.0,0.21712943]
[1746484313148,0.20041816,95189.0,95188.0,0.21912943]
[1746484314818,0.20041816,95189.0,95188.0,0.00901892]
[1746484315024,0.42702647,95189.0,95188.0,0.00901892]
[1746484315364,0.42702647,95189.0,95188.0,0.004]
[1746484315365,0.44232647,95189.0,95188.0,0.004]
[1746484315792,0.44232647,95189.0,95188.0,0.002]
[1746484316203,0.44232647,95189.0,95188.0,0.00701893]
[1746484316440,0.0318,95181.0,95180.0,0.21012798]
[1746484316655,0.04230629,95181.0,95179.0,0.21013031]
[1746484316873,0.0317,95180.0,95177.0,0.21013282]
[1746484317093,0.21050629,95181.0,95179.0,0.21013006]
[1746484317266,0.2,95181.0,95179.0,0.21013006]
[1746484317471,0.0309,95180.0,95179.0,0.21013006]
[1746484317776,0.0153,95178.0,95177.0,0.21013355]
[1746484318233,0.2153,95178.0,95177.0,0.21013355]
[1746484318527,0.22580662,95178.0,95175.0,0.21013921]
[1746484318777,0.01050696,95175.0,95172.0,0.21014399]
[1746484318981,0.21013914,95176.0,95174.0,0.21014047]
[1746484318982,0.0153,95176.0,95174.0,0.21014047]
[1746484319226,0.0153,95176.0,95175.0,0.21013921]
[1746484319893,0.0153,95176.0,95172.0,0.21014475]
[1746484319894,0.01050707,95174.0,95172.0,0.002]
[1746484320090,0.24104363,95173.0,95172.0,0.002]
[1746484321059,0.24104363,95173.0,95167.0,0.21015647]
[1746484321060,0.01050762,95169.0,95167.0,0.21015647]
[1746484321262,0.0309,95168.0,95167.0,0.21015647]
[1746484322185,0.2309,95168.0,95167.0,0.21015647]
[1746484322389,0.2309,95168.0,95167.0,0.21215647]
[1746484322590,0.2309,95168.0,95167.0,0.21415647]
[1746484325011,0.2156,95168.0,95167.0,0.21415647]
[1746484325425,0.2,95168.0,95167.0,0.21415647]
[1746484325875,0.2,95168.0,95167.0,0.22995647]
[1746484326097,0.2,95168.0,95167.0,0.24505647]
[1746484326477,0.2,95178.0,95177.0,0.2101348]
[1746484327140,0.2,95180.0,95179.0,0.21013038]
[1746484328421,0.2,95182.0,95181.0,0.21012597]
[1746484329150,0.21647607,95182.0,95181.0,0.21012597]
[1746484329630,0.21647607,95182.0,95181.0,0.0155]
[1746484329889,0.21647607,95182.0,95181.0,0.21012597]
[1746484330091,0.01647607,95182.0,95181.0,0.21012597]
[1746484330297,0.01647607,95182.0,95181.0,0.24232597]
[1746484331181,0.00041816,95189.0,95188.0,0.21011051]
[1746484331395,0.00041816,95189.0,95188.0,0.24391114]
[1746484331598,0.00041816,95189.0,95188.0,0.24696076]
[1746484332454,0.00041816,95189.0,95188.0,0.24996076]
[1746484332666,0.00041816,95189.0,95188.0,0.25396076]
[1746484334123,0.01647314,95199.0,95198.0,0.21008844]
[1746484334319,0.01651878,95199.0,95198.0,0.21521335]
[1746484335180,0.01651878,95199.0,95198.0,0.21721335]
[1746484335556,0.01651878,95199.0,95198.0,0.21821335]
[1746484336867,4.564e-05,95199.0,95198.0,0.21821335]
[1746484339813,0.01651775,95199.0,95198.0,0.21821335]
[1746484340446,0.01651775,95199.0,95198.0,0.00812491]
[1746484340730,0.01651775,95199.0,95198.0,0.21821335]
[1746484341133,0.21651775,95199.0,95198.0,0.21821335]
[1746484343121,0.01651775,95199.0,95198.0,0.21821335]
[1746484345252,0.21651775,95199.0,95198.0,0.21821335]
[1746484346032,0.01651775,95199.0,95198.0,0.21821335]
[1746484346851,4.564e-05,95199.0,95198.0,0.21821335]
[1746484349423,4.564e-05,95199.0,95198.0,0.23471335]
[1746484350249,0.01651779,95199.0,95198.0,0.23471335]
[1746484350966,0.01651779,95199.0,95198.0,0.21821335]
[1746484351758,0.01651779,95199.0,95198.0,0.23471335]
[1746484352412,0.01651779,95199.0,95198.0,0.21821335]
[1746484353049,0.01651779,95199.0,95198.0,0.25041335]
[1746484356312,0.01651779,95199.0,95198.0,0.00812491]
[1746484356568,0.01651779,95199.0,95198.0,0.21821335]
[1746484356778,4.564e-05,95199.0,95198.0,0.21821335]
[1746484359792,0.01651775,95199.0,95198.0,0.21821335]
[1746484365044,0.21651775,95199.0,95198.0,0.21821335]
[1746484366754,0.20004564,95199.0,95198.0,0.21821335]
[1746484372093,0.20004564,95199.0,95198.0,0.24921335]
[1746484373153,4.564e-05,95199.0,95198.0,0.24921335]
[1746484376427,4.564e-05,95199.0,95198.0,0.24621335]
[1746484376622,4.564e-05,95199.0,95198.0,0.25221335]
[1746484378499,4.564e-05,95199.0,95198.0,0.29937857]
[1746484382236,4.564e-05,95199.0,95198.0,0.30992475]
[1746484382438,4.564e-05,95199.0,95198.0,0.29937857]
[1746484382894,0.03331975,95200.0,95198.0,0.29937857]
[1746484382895,0.03331975,95200.0,95199.0,0.24148624]
[1746484383276,0.03331975,95200.0,95199.0,0.24541017]
[1746484383975,0.03331975,95200.0,95199.0,0.24841017]
[1746484385119,0.03331975,95200.0,95199.0,0.25041017]
[1746484387379,0.03331975,95200.0,95199.0,0.34685979]
[1746484390041,0.03331975,95200.0,95199.0,0.25041017]
[1746484393597,0.03331975,95200.0,95199.0,0.21901017]
[1746484396905,0.04979138,95200.0,95199.0,0.21901017]